[Event "Late-Titled-Tuesday-Blitz-March-19-2024"]
[Site "Chess.com"]
[Date "2024.03.19"]
[Round "4"]
[White "PolandHussars"]
[Black "Supergiuly"]
[Result "1-0"]
[WhiteElo "2553"]
[BlackElo "2346"]
[TimeControl "180+1"]
[EndTime "14:36:41 PDT"]
[Termination "PolandHussars won by resignation"]

1. e4 {[%clk 0:03:00.9]} 1... b6 {[%clk 0:02:58.3]} 2. g3 {[%clk 0:02:49.5]}
2... Bb7 {[%clk 0:02:57.8]} 3. Bg2 {[%clk 0:02:49.9]} 3... f5 {[%clk 0:02:41.3]}
4. d3 {[%clk 0:02:49.8]} 4... Nf6 {[%clk 0:02:40.6]} 5. Nc3 {[%clk 0:02:45.8]}
5... e5 {[%clk 0:02:39.4]} 6. Nge2 {[%clk 0:02:43.7]} 6... Bb4 {[%clk
0:02:38.1]} 7. O-O {[%clk 0:02:43.5]} 7... fxe4 {[%clk 0:02:37.8]} 8. Nxe4
{[%clk 0:02:43]} 8... Nxe4 {[%clk 0:02:37.4]} 9. dxe4 {[%clk 0:02:43.1]} 9...
O-O {[%clk 0:02:37.1]} 10. Be3 {[%clk 0:02:38.3]} 10... Nc6 {[%clk 0:02:36.8]}
11. Qd3 {[%clk 0:02:30.2]} 11... Kh8 {[%clk 0:02:27.7]} 12. Rad1 {[%clk
0:02:29.7]} 12... d6 {[%clk 0:02:26.5]} 13. c3 {[%clk 0:02:19.5]} 13... Bc5
{[%clk 0:02:25.5]} 14. Bxc5 {[%clk 0:02:07.8]} 14... bxc5 {[%clk 0:02:26.4]} 15.
Qe3 {[%clk 0:01:52.7]} 15... Qe7 {[%clk 0:02:22.3]} 16. f3 {[%clk 0:01:43.8]}
16... Rab8 {[%clk 0:02:20]} 17. Nc1 {[%clk 0:01:42.4]} 17... Ba6 {[%clk
0:02:19]} 18. Rf2 {[%clk 0:01:42.9]} 18... Qe6 {[%clk 0:02:17.6]} 19. Bf1 {[%clk
0:01:38.9]} 19... Bxf1 {[%clk 0:02:15.5]} 20. Rdxf1 {[%clk 0:01:39.8]} 20... Na5
{[%clk 0:02:15.5]} 21. b3 {[%clk 0:01:36.8]} 21... Nc6 {[%clk 0:02:07.7]} 22.
Kg2 {[%clk 0:01:27]} 22... a5 {[%clk 0:02:07.4]} 23. Qd3 {[%clk 0:01:23.6]}
23... a4 {[%clk 0:02:06.6]} 24. Qd5 {[%clk 0:01:17.5]} 24... Qxd5 {[%clk
0:02:01.5]} 25. exd5 {[%clk 0:01:18.4]} 25... Ne7 {[%clk 0:02:01.3]} 26. c4
{[%clk 0:01:17.5]} 26... axb3 {[%clk 0:02:01.1]} 27. axb3 {[%clk 0:01:17.9]}
27... Nf5 {[%clk 0:02:00.7]} 28. Re2 {[%clk 0:01:16.3]} 28... Nd4 {[%clk
0:02:00.4]} 29. Re3 {[%clk 0:01:16.9]} 29... Rb4 {[%clk 0:01:56.4]} 30. f4
{[%clk 0:01:16.2]} 30... exf4 {[%clk 0:01:54.7]} 31. Rxf4 {[%clk 0:01:16.3]}
31... Rfb8 {[%clk 0:01:49.5]} 32. Rf7 {[%clk 0:01:14.5]} 32... Kg8 {[%clk
0:01:45.9]} 33. Ree7 {[%clk 0:01:14.1]} 33... Nxb3 {[%clk 0:01:34.2]} 34. Rxg7+
{[%clk 0:01:13.2]} 34... Kf8 {[%clk 0:01:33.8]} 35. Ref7+ {[%clk 0:01:12.9]}
35... Ke8 {[%clk 0:01:33.9]} 36. Rxc7 {[%clk 0:01:11.6]} 36... Kd8 {[%clk
0:01:32.9]} 37. Rgd7+ {[%clk 0:01:11.7]} 37... Ke8 {[%clk 0:01:32.7]} 38. Rxh7
{[%clk 0:01:11.6]} 38... Kd8 {[%clk 0:01:32.9]} 39. Rcg7 {[%clk 0:01:10.8]} 1-0

[Event "Late-Titled-Tuesday-Blitz-March-19-2024"]
[Site "Chess.com"]
[Date "2024.03.19"]
[Round "4"]
[White "VanRommel28"]
[Black "BrandonJiang123456"]
[Result "1-0"]
[WhiteElo "2503"]
[BlackElo "2159"]
[TimeControl "180+1"]
[EndTime "14:36:52 PDT"]
[Termination "VanRommel28 won by resignation"]

1. e4 {[%clk 0:03:00.2]} 1... e5 {[%clk 0:03:00.2]} 2. Nf3 {[%clk 0:02:58.2]}
2... Nc6 {[%clk 0:03:00.6]} 3. Bb5 {[%clk 0:02:53.1]} 3... f5 {[%clk 0:02:59.7]}
4. d3 {[%clk 0:02:51.2]} 4... fxe4 {[%clk 0:02:59.2]} 5. dxe4 {[%clk 0:02:50]}
5... Nf6 {[%clk 0:02:59.8]} 6. Nc3 {[%clk 0:02:48.6]} 6... Bb4 {[%clk
0:02:59.4]} 7. O-O {[%clk 0:02:45.4]} 7... Bxc3 {[%clk 0:02:59.6]} 8. bxc3
{[%clk 0:02:45.2]} 8... d6 {[%clk 0:03:00.1]} 9. Bc4 {[%clk 0:02:44.1]} 9... Qe7
{[%clk 0:02:59.5]} 10. Rb1 {[%clk 0:02:38.9]} 10... Nd8 {[%clk 0:02:52.1]} 11.
Re1 {[%clk 0:02:37.6]} 11... Be6 {[%clk 0:02:51.8]} 12. Bxe6 {[%clk 0:02:36.2]}
12... Qxe6 {[%clk 0:02:52.3]} 13. Qd3 {[%clk 0:02:35]} 13... Qxa2 {[%clk
0:02:50.4]} 14. Bg5 {[%clk 0:02:31.7]} 14... Qe6 {[%clk 0:02:46.4]} 15. c4
{[%clk 0:02:32]} 15... b6 {[%clk 0:02:45.9]} 16. Nh4 {[%clk 0:02:17.1]} 16...
O-O {[%clk 0:02:35.7]} 17. Nf5 {[%clk 0:02:13.9]} 17... g6 {[%clk 0:02:30.3]}
18. Ne3 {[%clk 0:02:06.6]} 18... Nb7 {[%clk 0:02:26]} 19. f3 {[%clk 0:01:59.2]}
19... Rf7 {[%clk 0:02:17.7]} 20. Qa3 {[%clk 0:01:53.1]} 20... a5 {[%clk
0:02:16.1]} 21. Bxf6 {[%clk 0:01:48.1]} 21... Rxf6 {[%clk 0:02:14.2]} 22. Nd5
{[%clk 0:01:49]} 22... Rf7 {[%clk 0:02:14.1]} 23. Qa4 {[%clk 0:01:45.1]} 23...
Qd7 {[%clk 0:02:08.9]} 24. Qxd7 {[%clk 0:01:42.6]} 24... Rxd7 {[%clk 0:02:09]}
25. Nf6+ {[%clk 0:01:43.2]} 25... Kf8 {[%clk 0:02:06.7]} 26. Nxd7+ {[%clk
0:01:43.6]} 26... Ke7 {[%clk 0:02:07.1]} 27. Nxb6 {[%clk 0:01:43.8]} 27... cxb6
{[%clk 0:02:07]} 28. Rxb6 {[%clk 0:01:44.4]} 28... Nc5 {[%clk 0:02:05.9]} 29.
Rd1 {[%clk 0:01:36.6]} 29... a4 {[%clk 0:01:54.2]} 30. Rbxd6 {[%clk 0:01:34.8]}
30... a3 {[%clk 0:01:54]} 31. R6d5 {[%clk 0:01:31.2]} 31... Na4 {[%clk
0:01:49.5]} 32. Ra1 {[%clk 0:01:23.3]} 32... Nc3 {[%clk 0:01:47.5]} 33. Rxe5+
{[%clk 0:01:23.3]} 33... Kf6 {[%clk 0:01:47.2]} 34. Rc5 {[%clk 0:01:18.9]} 34...
a2 {[%clk 0:01:47.2]} 35. Kf2 {[%clk 0:01:14.2]} 35... Rb8 {[%clk 0:01:46.4]}
36. Ra5 {[%clk 0:01:14.1]} 36... Rb2 {[%clk 0:01:38.6]} 37. Ke3 {[%clk
0:01:11.9]} 37... Rb1 {[%clk 0:01:24.4]} 38. R5xa2 {[%clk 0:01:03.4]} 38... Nxa2
{[%clk 0:01:13.9]} 39. Rxb1 {[%clk 0:01:02]} 1-0

[Event "Late-Titled-Tuesday-Blitz-March-19-2024"]
[Site "Chess.com"]
[Date "2024.03.19"]
[Round "4"]
[White "SoltaniciR"]
[Black "AryanTari"]
[Result "0-1"]
[WhiteElo "2633"]
[BlackElo "3013"]
[TimeControl "180+1"]
[EndTime "14:36:55 PDT"]
[Termination "AryanTari won on time"]

1. e4 {[%clk 0:02:55.9]} 1... e5 {[%clk 0:02:59.4]} 2. d4 {[%clk 0:02:47.2]}
2... exd4 {[%clk 0:02:59.2]} 3. Qxd4 {[%clk 0:02:47.4]} 3... Nc6 {[%clk
0:02:59.7]} 4. Qe3 {[%clk 0:02:47.5]} 4... Nf6 {[%clk 0:02:58.7]} 5. Nc3 {[%clk
0:02:47.1]} 5... Bb4 {[%clk 0:02:57.9]} 6. Bd2 {[%clk 0:02:46.7]} 6... O-O
{[%clk 0:02:58]} 7. O-O-O {[%clk 0:02:42.7]} 7... Re8 {[%clk 0:02:58.3]} 8. Bc4
{[%clk 0:02:43.3]} 8... Ne5 {[%clk 0:02:35.2]} 9. Bb3 {[%clk 0:02:38.1]} 9... a5
{[%clk 0:02:35.8]} 10. a3 {[%clk 0:02:30.4]} 10... Bxc3 {[%clk 0:02:15.5]} 11.
Bxc3 {[%clk 0:02:29.5]} 11... d6 {[%clk 0:02:15.7]} 12. f3 {[%clk 0:01:45.5]}
12... b5 {[%clk 0:02:10.2]} 13. Ne2 {[%clk 0:01:13.7]} 13... b4 {[%clk
0:02:10.2]} 14. Bxe5 {[%clk 0:01:13]} 14... Rxe5 {[%clk 0:02:09.2]} 15. a4
{[%clk 0:01:12.5]} 15... Be6 {[%clk 0:02:03.6]} 16. Bxe6 {[%clk 0:01:07.8]}
16... fxe6 {[%clk 0:01:57.8]} 17. Ng3 {[%clk 0:01:01.2]} 17... Qe8 {[%clk
0:01:57]} 18. f4 {[%clk 0:00:49.3]} 18... Rc5 {[%clk 0:01:52.2]} 19. Rhe1 {[%clk
0:00:34.6]} 19... Qxa4 {[%clk 0:01:49.8]} 20. b3 {[%clk 0:00:18.7]} 20... Qa2
{[%clk 0:01:34.7]} 21. Re2 {[%clk 0:00:07.4]} 21... a4 {[%clk 0:01:31.1]} 0-1

[Event "Late-Titled-Tuesday-Blitz-March-19-2024"]
[Site "Chess.com"]
[Date "2024.03.19"]
[Round "4"]
[White "hblanco"]
[Black "Kavyev_Ruslan"]
[Result "1-0"]
[WhiteElo "2695"]
[BlackElo "2460"]
[TimeControl "180+1"]
[EndTime "14:37:02 PDT"]
[Termination "hblanco won by resignation"]

1. e4 {[%clk 0:03:00.9]} 1... c5 {[%clk 0:03:00.5]} 2. Nf3 {[%clk 0:02:59.9]}
2... Nc6 {[%clk 0:03:00.7]} 3. Bb5 {[%clk 0:03:00.2]} 3... g6 {[%clk 0:03:00.2]}
4. Bxc6 {[%clk 0:03:00.2]} 4... bxc6 {[%clk 0:03:00.4]} 5. O-O {[%clk
0:02:59.5]} 5... f6 {[%clk 0:02:49.7]} 6. Re1 {[%clk 0:02:48]} 6... d6 {[%clk
0:02:48.9]} 7. h3 {[%clk 0:02:46.9]} 7... Nh6 {[%clk 0:02:47.4]} 8. c3 {[%clk
0:02:45.8]} 8... Nf7 {[%clk 0:02:46.8]} 9. d4 {[%clk 0:02:46]} 9... cxd4 {[%clk
0:02:47]} 10. cxd4 {[%clk 0:02:46.9]} 10... Bg7 {[%clk 0:02:47.1]} 11. Nc3
{[%clk 0:02:45.9]} 11... O-O {[%clk 0:02:46.7]} 12. Be3 {[%clk 0:02:46]} 12...
d5 {[%clk 0:02:44.1]} 13. Rc1 {[%clk 0:02:40.8]} 13... Bb7 {[%clk 0:02:30.4]}
14. Qb3 {[%clk 0:02:34.6]} 14... Qb6 {[%clk 0:02:30.1]} 15. Qa3 {[%clk
0:02:34.8]} 15... Rfe8 {[%clk 0:02:23]} 16. Na4 {[%clk 0:02:24.6]} 16... Qa6
{[%clk 0:02:08.6]} 17. Qb3 {[%clk 0:02:24.7]} 17... Rab8 {[%clk 0:02:04.6]} 18.
Nc5 {[%clk 0:02:23.6]} 18... Qb6 {[%clk 0:01:55.1]} 19. Qa3 {[%clk 0:02:22.5]}
19... Rbd8 {[%clk 0:01:47.2]} 20. Rc3 {[%clk 0:02:19.4]} 20... Ba8 {[%clk
0:01:36.4]} 21. Rb3 {[%clk 0:02:09.8]} 21... Qc7 {[%clk 0:01:34.4]} 22. Ne6
{[%clk 0:02:09.8]} 22... Qd7 {[%clk 0:01:27.1]} 23. Nxd8 {[%clk 0:02:08.6]}
23... Rxd8 {[%clk 0:01:27.7]} 24. exd5 {[%clk 0:02:03]} 24... Qxd5 {[%clk
0:01:15]} 25. Qxe7 {[%clk 0:02:02.4]} 25... f5 {[%clk 0:01:09]} 26. Qc5 {[%clk
0:01:29.6]} 26... Qd7 {[%clk 0:00:52.1]} 27. Ne5 {[%clk 0:01:28.5]} 27... Nxe5
{[%clk 0:00:50.9]} 28. dxe5 {[%clk 0:01:29.4]} 28... Bf8 {[%clk 0:00:49.2]} 29.
Qc4+ {[%clk 0:01:28.8]} 29... Qd5 {[%clk 0:00:45.2]} 30. Qxd5+ {[%clk 0:01:27]}
30... cxd5 {[%clk 0:00:46.1]} 31. Bd4 {[%clk 0:01:27.1]} 31... Re8 {[%clk
0:00:34.7]} 32. Rc1 {[%clk 0:01:25.1]} 32... Be7 {[%clk 0:00:32.2]} 33. Rc7
{[%clk 0:01:24.5]} 33... Bg5 {[%clk 0:00:32.1]} 34. Rxa7 {[%clk 0:01:21.5]} 1-0

[Event "Late-Titled-Tuesday-Blitz-March-19-2024"]
[Site "Chess.com"]
[Date "2024.03.19"]
[Round "4"]
[White "AlexeiShirov"]
[Black "Bastiandash"]
[Result "1-0"]
[WhiteElo "2837"]
[BlackElo "2602"]
[TimeControl "180+1"]
[EndTime "14:37:05 PDT"]
[Termination "AlexeiShirov won by resignation"]

1. e4 {[%clk 0:03:00.9]} 1... d5 {[%clk 0:02:42]} 2. exd5 {[%clk 0:02:58.6]}
2... Nf6 {[%clk 0:02:42.3]} 3. Nf3 {[%clk 0:02:56.3]} 3... Nxd5 {[%clk
0:02:39.1]} 4. d4 {[%clk 0:02:55.2]} 4... Bf5 {[%clk 0:02:37.7]} 5. Bd3 {[%clk
0:02:42.1]} 5... Bxd3 {[%clk 0:02:30.7]} 6. Qxd3 {[%clk 0:02:41.4]} 6... c6
{[%clk 0:02:31.6]} 7. c4 {[%clk 0:02:38]} 7... Nf6 {[%clk 0:02:20.6]} 8. Nc3
{[%clk 0:02:36.7]} 8... e6 {[%clk 0:02:21]} 9. Bg5 {[%clk 0:02:31.7]} 9... Be7
{[%clk 0:02:18.8]} 10. O-O-O {[%clk 0:02:28.8]} 10... O-O {[%clk 0:02:18.9]} 11.
h4 {[%clk 0:02:27.3]} 11... Nbd7 {[%clk 0:02:18.6]} 12. Kb1 {[%clk 0:02:24.5]}
12... Qa5 {[%clk 0:02:07.7]} 13. Rhe1 {[%clk 0:02:21.3]} 13... Rfe8 {[%clk
0:02:07.4]} 14. Ne5 {[%clk 0:02:18.2]} 14... Nxe5 {[%clk 0:02:07.2]} 15. dxe5
{[%clk 0:02:13.7]} 15... Rad8 {[%clk 0:01:27.9]} 16. Qg3 {[%clk 0:02:01.7]}
16... Nd7 {[%clk 0:01:18.8]} 17. Ne4 {[%clk 0:01:28.7]} 17... Kf8 {[%clk
0:00:32.4]} 18. Nd6 {[%clk 0:01:19.6]} 18... Bxd6 {[%clk 0:00:10.2]} 19. Bxd8
{[%clk 0:01:17.4]} 19... Bxe5 {[%clk 0:00:09.3]} 20. Bxa5 {[%clk 0:01:15.7]}
20... Bxg3 {[%clk 0:00:09.1]} 21. Rxd7 {[%clk 0:01:13.5]} 1-0

[Event "Late-Titled-Tuesday-Blitz-March-19-2024"]
[Site "Chess.com"]
[Date "2024.03.19"]
[Round "4"]
[White "tomobeast"]
[Black "Gentlejimmy7"]
[Result "0-1"]
[WhiteElo "2235"]
[BlackElo "2653"]
[TimeControl "180+1"]
[EndTime "14:37:10 PDT"]
[Termination "Gentlejimmy7 won on time"]

1. e4 {[%clk 0:03:00.9]} 1... c6 {[%clk 0:02:57.9]} 2. d4 {[%clk 0:03:00]} 2...
d5 {[%clk 0:02:57.9]} 3. exd5 {[%clk 0:03:00.4]} 3... cxd5 {[%clk 0:02:57.3]} 4.
c4 {[%clk 0:03:01]} 4... Nf6 {[%clk 0:02:56.4]} 5. Nc3 {[%clk 0:03:00.2]} 5...
g6 {[%clk 0:02:56.9]} 6. cxd5 {[%clk 0:02:49.7]} 6... Bg7 {[%clk 0:02:57.4]} 7.
Qb3 {[%clk 0:02:48.1]} 7... O-O {[%clk 0:02:57.7]} 8. Be2 {[%clk 0:02:48.5]}
8... Nbd7 {[%clk 0:02:57.4]} 9. Bf3 {[%clk 0:02:48.1]} 9... Nb6 {[%clk
0:02:53.7]} 10. Nge2 {[%clk 0:02:45.7]} 10... Bg4 {[%clk 0:02:53.7]} 11. Bxg4
{[%clk 0:02:42.8]} 11... Nxg4 {[%clk 0:02:54.6]} 12. a4 {[%clk 0:02:42]} 12...
Nf6 {[%clk 0:02:54.4]} 13. Nf4 {[%clk 0:02:39.8]} 13... g5 {[%clk 0:02:41.9]}
14. a5 {[%clk 0:01:52.2]} 14... gxf4 {[%clk 0:02:41.2]} 15. axb6 {[%clk
0:01:51.3]} 15... f3 {[%clk 0:02:41.8]} 16. Rxa7 {[%clk 0:01:36.1]} 16... Rxa7
{[%clk 0:02:32.9]} 17. bxa7 {[%clk 0:01:35.6]} 17... Qa8 {[%clk 0:02:33.6]} 18.
Nb5 {[%clk 0:01:09.9]} 18... Rc8 {[%clk 0:02:27.7]} 19. Bf4 {[%clk 0:01:01.2]}
19... fxg2 {[%clk 0:02:14.2]} 20. Rg1 {[%clk 0:01:01.1]} 20... Nh5 {[%clk
0:02:03.8]} 21. Be5 {[%clk 0:00:52.8]} 21... Rc1+ {[%clk 0:01:59.9]} 22. Kd2
{[%clk 0:00:45.5]} 22... Rxg1 {[%clk 0:01:52.9]} 23. Qf3 {[%clk 0:00:32.6]}
23... f6 {[%clk 0:01:42.5]} 24. Bb8 {[%clk 0:00:31.3]} 24... Bh6+ {[%clk
0:01:38.8]} 25. Kd3 {[%clk 0:00:18.5]} 25... Nf4+ {[%clk 0:01:37.8]} 26. Ke4
{[%clk 0:00:09.2]} 26... Re1+ {[%clk 0:01:37.2]} 27. Kf5 {[%clk 0:00:08.7]}
27... g1=Q {[%clk 0:01:37.2]} 28. Qh5 {[%clk 0:00:03.6]} 28... Nxh5 {[%clk
0:01:32.8]} 0-1

[Event "Late-Titled-Tuesday-Blitz-March-19-2024"]
[Site "Chess.com"]
[Date "2024.03.19"]
[Round "4"]
[White "Navyblue1"]
[Black "Piotrek1979"]
[Result "1-0"]
[WhiteElo "2218"]
[BlackElo "2475"]
[TimeControl "180+1"]
[EndTime "14:37:11 PDT"]
[Termination "Navyblue1 won by resignation"]

1. d4 {[%clk 0:03:00.9]} 1... Nf6 {[%clk 0:02:57.9]} 2. c4 {[%clk 0:03:00.3]}
2... e6 {[%clk 0:02:57.5]} 3. Nf3 {[%clk 0:02:59.8]} 3... d5 {[%clk 0:02:57.1]}
4. cxd5 {[%clk 0:02:54.3]} 4... exd5 {[%clk 0:02:56]} 5. Nc3 {[%clk 0:02:53.8]}
5... c6 {[%clk 0:02:55.3]} 6. Bg5 {[%clk 0:02:53.5]} 6... h6 {[%clk 0:02:53]} 7.
Bh4 {[%clk 0:02:52.6]} 7... Bf5 {[%clk 0:02:52.6]} 8. e3 {[%clk 0:02:49.1]} 8...
Nbd7 {[%clk 0:02:49.6]} 9. Bd3 {[%clk 0:02:48.5]} 9... Bxd3 {[%clk 0:02:49.3]}
10. Qxd3 {[%clk 0:02:48.4]} 10... Be7 {[%clk 0:02:49.9]} 11. O-O {[%clk
0:02:48.2]} 11... O-O {[%clk 0:02:49.2]} 12. Rab1 {[%clk 0:02:46.4]} 12... a5
{[%clk 0:02:47.8]} 13. a3 {[%clk 0:02:44.2]} 13... Ne4 {[%clk 0:02:47.4]} 14.
Bxe7 {[%clk 0:02:38.6]} 14... Qxe7 {[%clk 0:02:48.3]} 15. Nd2 {[%clk 0:02:38.7]}
15... Nd6 {[%clk 0:02:46.3]} 16. Rfe1 {[%clk 0:02:34.5]} 16... Nf6 {[%clk
0:02:25]} 17. f3 {[%clk 0:02:24.2]} 17... Rfe8 {[%clk 0:02:22.6]} 18. e4 {[%clk
0:02:19.3]} 18... dxe4 {[%clk 0:02:22.2]} 19. fxe4 {[%clk 0:02:18.7]} 19... Nc8
{[%clk 0:01:13]} 20. Rf1 {[%clk 0:02:06.4]} 20... Nd7 {[%clk 0:01:12.4]} 21. Rf3
{[%clk 0:01:57.7]} 21... a4 {[%clk 0:01:09.2]} 22. Rbf1 {[%clk 0:01:57.7]} 22...
Rf8 {[%clk 0:01:09.1]} 23. Rg3 {[%clk 0:01:47.2]} 23... b5 {[%clk 0:01:06.7]}
24. Qe3 {[%clk 0:01:44.3]} 24... Qd6 {[%clk 0:00:51.2]} 25. e5 {[%clk
0:01:37.8]} 25... Qe6 {[%clk 0:00:51.2]} 26. Nde4 {[%clk 0:01:34.5]} 26... f5
{[%clk 0:00:47]} 27. exf6 {[%clk 0:01:30.6]} 27... Rf7 {[%clk 0:00:12]} 28. Qxh6
{[%clk 0:01:24.5]} 1-0

[Event "Late-Titled-Tuesday-Blitz-March-19-2024"]
[Site "Chess.com"]
[Date "2024.03.19"]
[Round "4"]
[White "Meri-Arabidze"]
[Black "whitemirrorninja"]
[Result "1-0"]
[WhiteElo "2670"]
[BlackElo "2445"]
[TimeControl "180+1"]
[EndTime "14:37:14 PDT"]
[Termination "Meri-Arabidze won by checkmate"]

1. d4 {[%clk 0:03:00.9]} 1... Nf6 {[%clk 0:02:54.5]} 2. c4 {[%clk 0:03:00.9]}
2... b6 {[%clk 0:02:54.6]} 3. Nf3 {[%clk 0:03:00.2]} 3... Bb7 {[%clk 0:02:55]}
4. Nc3 {[%clk 0:03:00.8]} 4... Ne4 {[%clk 0:02:53.7]} 5. Bd2 {[%clk 0:02:56.4]}
5... e6 {[%clk 0:02:50.7]} 6. g3 {[%clk 0:02:56.2]} 6... Nxd2 {[%clk 0:02:48.6]}
7. Qxd2 {[%clk 0:02:56.2]} 7... Bxf3 {[%clk 0:02:48.5]} 8. exf3 {[%clk
0:02:56.2]} 8... c6 {[%clk 0:02:46.6]} 9. d5 {[%clk 0:02:55]} 9... Na6 {[%clk
0:02:45.1]} 10. Bg2 {[%clk 0:02:52.3]} 10... cxd5 {[%clk 0:02:31.4]} 11. cxd5
{[%clk 0:02:51.7]} 11... Rc8 {[%clk 0:02:32.1]} 12. O-O {[%clk 0:02:50.4]} 12...
Nc5 {[%clk 0:02:32.8]} 13. f4 {[%clk 0:02:48.1]} 13... Be7 {[%clk 0:02:33.2]}
14. d6 {[%clk 0:02:37.3]} 14... Bf6 {[%clk 0:02:32.7]} 15. Nb5 {[%clk
0:02:37.4]} 15... a6 {[%clk 0:02:26.5]} 16. Nc7+ {[%clk 0:02:35.4]} 16... Rxc7
{[%clk 0:02:26.9]} 17. dxc7 {[%clk 0:02:35.4]} 17... Qxc7 {[%clk 0:02:27.8]} 18.
Rac1 {[%clk 0:02:33.1]} 18... a5 {[%clk 0:02:28.3]} 19. b3 {[%clk 0:02:21.8]}
19... O-O {[%clk 0:02:28.6]} 20. Rfd1 {[%clk 0:02:20.8]} 20... d5 {[%clk
0:02:28.2]} 21. f5 {[%clk 0:02:21.1]} 21... h6 {[%clk 0:02:22.2]} 22. fxe6
{[%clk 0:02:14.7]} 22... fxe6 {[%clk 0:02:23.1]} 23. Qe2 {[%clk 0:02:11]} 23...
Qf7 {[%clk 0:02:15.6]} 24. f4 {[%clk 0:01:58.6]} 24... g5 {[%clk 0:02:12.2]} 25.
Bh3 {[%clk 0:01:49.9]} 25... Kh8 {[%clk 0:02:06.6]} 26. fxg5 {[%clk 0:01:39.7]}
26... Bxg5 {[%clk 0:02:06.7]} 27. Rf1 {[%clk 0:01:39.3]} 27... Qg7 {[%clk
0:02:05.2]} 28. Rxf8+ {[%clk 0:01:38]} 28... Qxf8 {[%clk 0:02:06.1]} 29. Rf1
{[%clk 0:01:33.5]} 29... Qg7 {[%clk 0:02:06.6]} 30. Bxe6 {[%clk 0:01:27]} 30...
d4 {[%clk 0:01:53.2]} 31. Bc4 {[%clk 0:01:14.3]} 31... Be3+ {[%clk 0:01:46.3]}
32. Kg2 {[%clk 0:01:14.6]} 32... Qe5 {[%clk 0:01:26.8]} 33. Rf8+ {[%clk
0:01:10]} 33... Kg7 {[%clk 0:01:25.4]} 34. Rf7+ {[%clk 0:01:09.3]} 34... Kg6
{[%clk 0:01:25.8]} 35. Qg4+ {[%clk 0:01:04.1]} 35... Bg5 {[%clk 0:01:25]} 36. h4
{[%clk 0:00:58.9]} 36... d3 {[%clk 0:00:52]} 37. h5# {[%clk 0:00:56.9]} 1-0

[Event "Late-Titled-Tuesday-Blitz-March-19-2024"]
[Site "Chess.com"]
[Date "2024.03.19"]
[Round "4"]
[White "GiorgianBarbosa"]
[Black "Legendinunknown"]
[Result "0-1"]
[WhiteElo "2529"]
[BlackElo "2826"]
[TimeControl "180+1"]
[EndTime "14:37:20 PDT"]
[Termination "Legendinunknown won by checkmate"]

1. b3 {[%clk 0:03:00]} 1... d5 {[%clk 0:02:42.1]} 2. Bb2 {[%clk 0:03:00.9]} 2...
Bg4 {[%clk 0:02:37.5]} 3. h3 {[%clk 0:03:00.5]} 3... Bh5 {[%clk 0:02:33.6]} 4.
g4 {[%clk 0:03:00.6]} 4... Bg6 {[%clk 0:02:34]} 5. Bg2 {[%clk 0:03:01.5]} 5...
e6 {[%clk 0:02:34]} 6. d3 {[%clk 0:02:57.4]} 6... Nd7 {[%clk 0:02:32]} 7. Nd2
{[%clk 0:02:57]} 7... h5 {[%clk 0:02:26.6]} 8. e3 {[%clk 0:02:53.7]} 8... Ne7
{[%clk 0:02:22.8]} 9. Qe2 {[%clk 0:02:50.2]} 9... f6 {[%clk 0:02:22.9]} 10.
O-O-O {[%clk 0:02:48.3]} 10... c6 {[%clk 0:02:22.1]} 11. f4 {[%clk 0:02:48.2]}
11... Bf7 {[%clk 0:02:21.6]} 12. Ngf3 {[%clk 0:02:48]} 12... Qa5 {[%clk
0:02:21]} 13. Kb1 {[%clk 0:02:47.6]} 13... O-O-O {[%clk 0:02:21]} 14. g5 {[%clk
0:02:45.9]} 14... Kb8 {[%clk 0:02:20.6]} 15. e4 {[%clk 0:02:39.1]} 15... Nc8
{[%clk 0:02:18.9]} 16. f5 {[%clk 0:02:30.7]} 16... e5 {[%clk 0:02:15]} 17. g6
{[%clk 0:02:30.5]} 17... Bg8 {[%clk 0:02:11.5]} 18. c4 {[%clk 0:02:29.9]} 18...
Ba3 {[%clk 0:02:10.4]} 19. cxd5 {[%clk 0:02:21.4]} 19... Bxb2 {[%clk 0:02:06.7]}
20. dxc6 {[%clk 0:02:07.8]} 20... Nc5 {[%clk 0:02:00.4]} 21. cxb7 {[%clk
0:02:00.5]} 21... Nb6 {[%clk 0:01:58.5]} 22. Kxb2 {[%clk 0:01:54.7]} 22... Nxd3+
{[%clk 0:01:51.9]} 23. Kb1 {[%clk 0:01:52.9]} 23... Qc3 {[%clk 0:01:50.2]} 24.
Nf1 {[%clk 0:01:38.2]} 24... Bxb3 {[%clk 0:01:47.5]} 25. axb3 {[%clk 0:01:37.4]}
25... Qxb3+ {[%clk 0:01:48.4]} 26. Ka1 {[%clk 0:01:37.9]} 26... Qc3+ {[%clk
0:01:47.2]} 27. Kb1 {[%clk 0:01:36.2]} 27... Nc4 {[%clk 0:01:47.7]} 28. Ne1
{[%clk 0:00:14.9]} 28... Qb3+ {[%clk 0:01:43.9]} 29. Ka1 {[%clk 0:00:13.9]}
29... Rd6 {[%clk 0:01:44.1]} 30. Rd2 {[%clk 0:00:08.4]} 30... Qc3+ {[%clk
0:01:31.3]} 31. Kb1 {[%clk 0:00:08]} 31... Rb6+ {[%clk 0:01:31.3]} 32. Rb2
{[%clk 0:00:07.9]} 32... Rxb2+ {[%clk 0:01:30.4]} 33. Qxb2 {[%clk 0:00:07.4]}
33... Qxb2# {[%clk 0:01:31.3]} 0-1